Cogmind - Beta 16 @@@ ROGUE MODE // 2026.01.06 @ 21:05:25 Player: Skergy Result: Destroyed by G-34 Mercenary with Small Laser Performance ------------- Evolutions (0) 0 Regions Visited (1) 200 Robots Destroyed (16) 80 Value Destroyed (326) 326 Prototype IDs (0) 0 Alien Tech Used (0) 0 Bonus (0) 0 TOTAL SCORE: 606 Bonus ------- None Cogmind --------- Core Integrity 0/250 Matter 110/300 Energy 61/100 System Corruption 10% Temperature Cool (8) Movement Flying (37) Location -10/Materials Parts ------- > --- POWER (1) -------- (None) > --- PROPULSION (2) --- Flight Unit Flight Unit > --- UTILITY (2) ------ (None) > --- WEAPON (2) ------- (None) > --- INVENTORY (5) ---- Light Ion Engine Light Ion Engine Small Storage Unit Seismic Detector Light Assault Rifle Peak State ------------ > --- POWER ------------ Ion Engine > --- PROPULSION ------- Light Treads Light Treads > --- UTILITY ---------- Large Storage Unit Light Armor Plating > --- WEAPON ----------- Assault Rifle Assault Rifle > --- INVENTORY -------- Light Ion Engine Light Ion Engine Light Ion Engine Aluminum Leg Aluminum Leg Small Storage Unit Power Shielding Assault Rifle Light Assault Rifle Light Assault Rifle [Rating: 8] Favorites ----------- Power Ion Engine Engine Ion Engine Propulsion Light Treads Treads Light Treads Leg Aluminum Leg Flight Unit Flight Unit Utility Large Storage Unit Storage Large Storage Unit Protection Light Armor Plating Weapon Assault Rifle Ballistic Gun Assault Rifle Build | -11 -10 ------- Run | Yrd Mat Slots Evolved . | . . Power . | . . Propulsion . | . . Utility . | . . Weapon . | . . Parts Attached 15 | 7 8 Power 1 | 1 . Engine 1 | 1 . Core . | . . Reactor . | . . Propulsion 6 | 2 4 Treads 2 | 2 . Leg 2 | . 2 Wheel . | . . Hover . | . . Flight 2 | . 2 Utility 3 | 1 2 Device . | . . Storage 2 | 1 1 Processor . | . . Hackware . | . . Protection 1 | . 1 Artifact . | . . Weapon 5 | 3 2 Energy Gun . | . . Energy Cannon . | . . Ballistic Gun 5 | 3 2 Ballistic Cannon . | . . Launcher . | . . Special Weapon . | . . Impact Weapon . | . . Slashing Weapon . | . . Piercing Weapon . | . . Special Melee Weapon . | . . Unidentified Prototypes . | . . Corrupted Parts 1 | . 1 System Corruption 9 | . 9 Parts Lost 10 | . 10 Power 1 | . 1 Propulsion 4 | . 4 Utility 1 | . 1 Weapon 4 | . 4 Highest Loss Streak 7 | . 7 To Critical Strikes . | . . Average Backups 8 | 2 9 Power 2 | . 2 Propulsion 2 | 1 2 Utility 2 | . 2 Weapon 1 | . 2 Tool/Special . | . . Unused Backups 6 | . 6 Power 3 | . 3 Propulsion . | . . Utility 3 | . 3 Weapon . | . . Tool/Special . | . . Average Slot Usage (%) 83 | . 83 Engine 11 | . 11 Treads 22 | . 22 Leg 1 | . 1 Storage 14 | . 14 Protection 5 | . 5 Ballistic Gun 26 | . 26 Peak Build Rating 8 | 6 8 Average Rating 6 | 4 6 On Entrance 3 | . 6 Avg Prop Armor Cover (%) . | . . Naked Turns . | . . Heaviest Build 32 | 13 32 Greatest Support 40 | 40 40 Greatest Overweight (x) 6 | . 6 Average Overweight (x) . | . . Largest Inventory Capacity 15 | 8 15 Average Capacity 13 | 7 13 Most Carried 14 | 4 14 Average Carried 8 | 2 9 Final Capacity 8 | 8 5 Final Carried 5 | 4 5 Class Distribution -------------------- 100% | Mutant Dominant Class ---------------- Mutant | -10/Materials Resources | -11 -10 ----------- Run | Yrd Mat Matter Collected 357 | 208 149 Remotely . | . . Salvage Created 484 | . 484 Parts 30 | . 30 Haulers Intercepted . | . . Recyclers Shooed 1 | . 1 Parts Field Recycled . | . . Retrieved Matter . | . . Parts Self-Destructed . | . . Prevented . | . . Parts Restored . | . . Kills | -11 -10 ------- Run | Yrd Mat Combat Hostiles Destroyed 13 | . 13 Guns 11 | . 11 AOE 2 | . 2 Classes Destroyed 4 | . 4 Worker 2 | . 2 Recycler 1 | . 1 Swarmer 6 | . 6 Grunt 7 | . 7 Best Kill Streak 7 | . 7 Combat Bots Only 6 | . 6 Max Kills in Single Turn 3 | . 3 Gunslinging . | . . Exploded 2 | . 2 Melee . | . . Uniques/NPCs Destroyed . | . . Combat | -11 -10 -------- Run | Yrd Mat Hostile Shots Fired 197 | . 197 Missed 64 | . 64 Hits 133 | . 133 Projectile 133 | . 133 Damage Taken 1423 | . 1423 Core 250 | . 250 Absorbed by Shields . | . . Core Remaining (%) 100 | 100 . Volleys Fired 44 | . 44 Largest 2 | . 2 Hottest 40 | . 40 Shots Fired 87 | . 87 Gun 87 | . 87 Cannon . | . . Launcher . | . . Special . | . . Kinetic 87 | . 87 Thermal . | . . Explosive . | . . Electromagnetic . | . . Robot Hit Streak 6 | . 6 Robot Miss Streak 5 | . 5 Penetration Max . | . . Secondary Targets 1 | . 1 Max Gunslinging Chain 1 | . 1 Shots Hit Robots 49 | . 49 Core Hits 26 | . 26 Critical Kills 1 | . 1 Critical Parts Destroyed . | . . Critical Strikes 1 | . 1 Destroy 1 | . 1 Melee Attacks . | . . Impact . | . . Slashing . | . . Piercing . | . . Sneak Attacks . | . . Combat Hostiles . | . . Follow-up Attacks . | . . Damage Inflicted 813 | . 813 Guns 693 | . 693 Cannons . | . . Explosions 103 | . 103 Melee . | . . Ramming 17 | . 17 Kinetic 693 | . 693 Thermal . | . . Explosive . | . . Electromagnetic 103 | . 103 Impact . | . . Slashing . | . . Piercing . | . . Highest Corruption 10 | . 10 Average Corruption 1 | . 1 Corruption Purged . | . . Corruption Blocked . | . . Effects 4 | . 4 Message Errors 1 | . 1 Matter Fused 1 | . 1 Heat Flow Errors 1 | . 1 Data Loss (minor) 1 | . 1 Overload Shots . | . . Overflow Damage . | . . Projectiles . | . . Explosions . | . . Melee . | . . Knockbacks . | . . Impact . | . . Kinetic . | . . Secondary . | . . Self-Inflicted Damage . | . . Shots . | . . Rammed 1 | . 1 Targets Rammed 4 | . 4 Kicked 2 | . 2 Crushed 1 | . 1 Highest Temperature 120 | . 120 Average Temperature 60 | . 60 Received Heat Transfer 573 | . 573 Siege Activations . | . . Martial Activations . | . . Shielding Activations . | . . Robots Disrupted . | . . Combat Hostiles . | . . Robots Corrupted . | . . Combat Hostiles . | . . Parts Fried . | . . Impact Corruptions . | . . Robots Melted . | . . Combat Hostiles . | . . Parts Melted . | . . Heat Transferred . | . . Parts Sabotaged . | . . Parts Stolen . | . . Parts Stripped . | . . Power Chain Reactions . | . . Alert | -11 -10 ------- Run | Yrd Mat Maximum Alert Level 1 | . 1 Low Security (%) 89 | 100 87 Level 1 10 | . 12 Level 2 . | . . Level 3 . | . . Level 4 . | . . Level 5 . | . . High Security . | . . Max Security . | . . Peak Influence 226 | . 226 Initial . | . . Average 64 | . 73 Influence Increases 399 | . 399 Destroy 0b10 Robot/C 260 | . 260 Destroy 0b10 Robot/NC 15 | . 15 Destroy Leader 50 | . 50 Successful Hack 14 | . 14 Select Force Hacks 30 | . 30 Disable Machine 30 | . 30 Influence Decreases 293 | . 293 Time Decay 193 | . 193 Lost Part 100 | . 100 Squads Dispatched 4 | . 4 Investigation 2 | . 2 Extermination . | . . Reinforcement 2 | . 2 Assault . | . . Garrison . | . . Intercept . | . . Searches Triggered . | . . Construction Impeded . | . . Haulers Reinforced . | . . Active Scanning Responses . | . . Cargo Convoy Interrupts . | . . Stealth | -11 -10 --------- Run | Yrd Mat Distress Signals 1 | . 1 Communications Jammed . | . . Distress Signals . | . . Times Spotted 20 | . 20 Peak Tracking Total 6 | . 6 Tactical Retreats . | . . Traps | -11 -10 ------- Run | Yrd Mat Traps Triggered 1 | . 1 Indirectly . | . . Trap Hack Attempts . | . . Triggered . | . . Disarmed . | . . Reprogrammed . | . . Reused . | . . Traps Extracted . | . . Installed . | . . Triggered . | . . Machines | -11 -10 ---------- Run | Yrd Mat Machines Disabled 2 | . 2 Max in Single Turn 2 | . 2 Machines Repaired . | . . Machines Dismantled . | . . Machines Sabotaged . | . . Overloaded Fab Kills . | . . Hacking | -11 -10 --------- Run | Yrd Mat Machines Accessed 3 | . 3 Terminals 2 | . 2 Fabricators . | . . Repair Stations . | . . Recycling Units 1 | . 1 Scanalyzers . | . . Garrison Access . | . . Total Hacks 11 | . 11 Successful 6 | . 6 Failed 5 | . 5 Catastrophic . | . . Database Lockouts . | . . Manual 11 | . 11 Terminals 8 | . 8 Fabricators . | . . Repair Stations . | . . Recycling Units 3 | . 3 Scanalyzers . | . . Garrison Access . | . . Terminal Hacks 1 | . 1 Branch Access Points 1 | . 1 Fabricator Hacks . | . . Repair Station Hacks . | . . Recycling Unit Hacks . | . . Scanalyzer . | . . Garrison Access Hacks . | . . Unauthorized Hacks 5 | . 5 Terminals 2 | . 2 Botnet 2 | . 2 Fabricators . | . . Repair Stations . | . . Recycling Units 3 | . 3 Reject 1 | . 1 Recyclers 1 | . 1 Tunnel 1 | . 1 Scanalyzers . | . . Garrison Access . | . . Data Cores Recovered . | . . Used . | . . Hacking Detections 2 | . 2 Full Trace Events 1 | . 1 Feedback Events 1 | . 1 Corruption 1 | . 1 Feedback Blocked . | . . Robot Schematics Acquired . | . . Robots Built . | . . Authchips . | . . Time . | . . Total Robot Build Rating . | . . Part Schematics Acquired . | . . Parts Built . | . . Authchips . | . . Time . | . . Total Part Build Rating . | . . Part Studies Acquired . | . . Parts Repaired . | . . Time . | . . Parts Recycled . | . . Recycled Matter . | . . Retrieved Matter . | . . Retrieved Components . | . . Parts Scanalyzed . | . . Part Schematics Acquired . | . . Parts Damaged . | . . Bothacking | -11 -10 ------------ Run | Yrd Mat Used RIF Installer . | . . Robots Hacked . | . . Non-combat . | . . Combat . | . . Robot Hacks Applied . | . . Relay Couplers Released . | . . Fabnet Peak Effective % . | . . Robots Rewired . | . . Allies Hacked . | . . Hacks Repelled . | . . Allies | -11 -10 -------- Run | Yrd Mat Total Allies . | . . Largest Group . | . . Highest-Rated Group . | . . Highest-Rated Ally . | . . Total Orders . | . . Ally Attacks . | . . Total Damage . | . . Kills . | . . Allies Corrupted . | . . Allies Melted . | . . Intel | -11 -10 ------- Run | Yrd Mat Active Infowar (turns) . | . . Robot Analysis Total . | . . Derelict Logs Recovered . | . . Drone Launches . | . . Drone Recoveries . | . . Exploration | -11 -10 ------------- Run | Yrd Mat Turns Passed 586 | 68 518 Spaces Moved 247 | 38 209 Core 9 | 5 4 Treads 230 | 33 197 Legs 6 | . 6 Wheels . | . . Hover . | . . Flight 2 | . 2 Fastest Speed 37 | 50 37 Average Speed 167 | 145 171 Slowest Speed 350 | 160 350 Overloaded Moves . | . . Propulsion Burnouts . | . . Robots Hopped . | . . Potential Cave-ins . | . . Cave-ins Triggered . | . . Exploration Rate (%) 25 | 3 47 Regions Visited 1 Branch Regions . Pre-discovered Areas 1 | . 1 Known Exits Taken . | . . Unknown Exits Taken 1 | 1 . Scrap Searched . | . . Spaces Dug . | . . Terrain Destroyed . | . . Melee . | . . Projectile . | . . AOE . | . . Terrain Rammed . | . . Walls Destroyed . | . . Machines Disabled . | . . Actions | -11 -10 --------- Run | Yrd Mat Total 323 | 47 276 Wait . | . . Move 246 | 37 209 Hop . | . . Pick Up 10 | 3 7 Fast Attach 8 | 6 2 Attach 6 | . 6 Detach 1 | . 1 Swap 3 | 1 2 Drop 1 | . 1 Fire 44 | . 44 Melee . | . . Ram 1 | . 1 Kick 2 | . 2 Crush 1 | . 1 Escape Stasis . | . . Rewire . | . . Trap . | . . Miscellaneous . | . . Route ------- -11/Scrapyard -10/Materials (discovered 3 exits: [*Mat] / *Min x2) History --------- Turn | Location | Event 10 | -11/Scrapyard | Discovered new exit (range 15) 69 | -11/Scrapyard | Entered Materials 69 | -10/Materials | Discovered new exit (range 15) 315 | -10/Materials | Build established: Mutant 421 | -10/Materials | Identified exit to Mines 475 | -10/Materials | Discovered new exit (range 16) 533 | -10/Materials | Core integrity fell below 50% 565 | -10/Materials | Core integrity fell below 20% 586 | -10/Materials | System corruption reached 10% 587 | -10/Materials | Destroyed by G-34 Mercenary with Small Laser Last Messages --------------- 00500_ R-06 Scavenger collects Sml. Laser. 00501_ U-05 Engineer lays Concrete. 00503_ R-06 Scavenger inserts Sml. Laser into recycling unit. 00504_ Recycling unit begins recycling process. 00505_ K-01 Serf collects debris. 00515_ R-06 Scavenger collects Lgt. Ion Engine. 00519_ K-01 Serf collects debris. 00529_ Lgt. Treads destroyed. 00535_ Assault Rifle destroyed. 00544_ U-05 Engineer builds a Door. 00551_ Assault Rifle destroyed. 00559_ Aluminum Leg destroyed. 00561_ Kicked G-34 Mercenary. 00564_ Aluminum Leg destroyed. 00566_ Slammed into G-34 Mercenary. 00568_ G-34 Mercenary destroyed. 00585_ Lgt. Assault Rifle destroyed. 00585_ Integrated Corrupted Flight Unit (+9). 00586_ Dropped Lrg. Storage Unit. Map ----- +----------------------------------------------------+ | # !! ####?????????????????????????????????? | | " """#?????????????????????????????????? | | T = R"#?????????????????????????????????? | | " % """#?????????????????????????????????? | | # ####?????????????????????????????????? | | # #????????????????????????????????????? | | # #????????????????????????????????????? | | "% #????????????????????????????????????? | | Y ^ ########?????????????????????????????? | | " #???###???????????????????????? | | # """ #?? #????????????????????? | | # % """ #??""" #????????????????????? | | # #? """ #????????????????????? | | # % #? """ #????????????????????? | | #%=!#####+###### # #????????????????????? | | # = #??????????# # "" #????????????????????? | | # #??????????# + T" #????????????????????? | | # ???????????# # ! "" #????????????????????? | | # < ???????????# # #????????????????????? | | # ??????????## ##########????????????????????? | | ###???????????# #########????????????????????? | | ??????????????# # #????????????????????? | | ??????????????# g# #????????????????????? | | ??????????????# %g #????????????????????? | | ??????????????# # ! #????????????????????? | | ??????????????####### !!*@ #????????????????????? | | ????????????????????# +????????????????????? | | ????????????????????# #????????????????????? | | ????????????????????# #????????????????????? | | ????????????????????# #????????????????????? | | ????????????????????# #????????????????????? | | ????????????????????# #????????????????????? | | ????????????????????#########????????????????????? | | | | | | | | | | | | | | | | | | | | | | | | | | | | | | | | | | | +----------------------------------------------------+ Best States ------------- Heat Dissipation 25 Energy Generation 10 Energy Capacity 250 Matter Stores 291 Matter Capacity 300 Sight Range 16 Terrain Scan Density 10 Armor Coverage 150 Evasion (%) 40 Recoil Reduction 2 Item Schematics ----------------- None Robot Schematics ------------------ None Fabricated ------------ Nothing Repaired ---------- Nothing Studied --------- None Alien Tech Used ----------------- None Achievements -------------- None Challenges ------------ None Game ------ Seed ReinforcedSurgeActivator Manual? 0 Play Time 00:06:38 Cumulative 100.9 hours Start 2026.01.06 @ 21:00:06 End 2026.01.06 @ 21:05:25 Sessions 1 Manual Loads 0 Difficulty Rogue Special Mode None Game No. 116 Rogue 116 Adventurer 0 Explorer 0 Win Type - Total 3 Types 3/0/0/0/0/0/0/0/0/0 Lore% 61 Gallery% 49 Achievement% 34 Wizard Run 0 Options --------- Layout 1 ASCII 0 Keyboard 1 Movement Vi Keybinds 0 Fullscreen 2 Font 24/Terminus Map View 50x35 Zoom Use 1% Tactical HUD 1 Map Filters NONE Filters NONE Steam 1 RUN: da03a85b-9336-40d6-8c42-f7316b2e5533